[Event "ARM-ch Club 2018"]
[Site "Yerevan"]
[Date "2018.06.09"]
[Round "2"]
[White "Danielyan, Vahe"]
[Black "Hakobyan, Romik"]
[Result "1-0"]
[ECO "C46"]
[WhiteElo "2387"]
[BlackElo "2062"]
[Annotator "NA"]
[PlyCount "79"]
[EventDate "2018.??.??"]
[EventCountry "ARM"]
[SourceTitle "playchess.com"]
[Source "ChessBase"]
[SourceQuality "1"]
[TimeControl "5400+30"]

1. e4 {[%emt 0:00:27]} e5 {[%emt 0:00:41]} 2. Nf3 {[%emt 0:00:22]} Nc6 {[%emt 0:00:14]} 3. Nc3 {[%emt 0:00:26]} g6 {[%emt 0:02:51]} 4. h4 {[%emt 0:00:32] C46: 3 Nc3: Unusual Black 3rd moves} (4. d4 exd4 5. Nxd4 Bg7 6. Be3 Nge7 7. Qd2 O-O 8. O-O-O d6 9. h4 h5 10. f3 Ne5 11. Bh6 b5 12. Bxg7 Kxg7 13. Bxb5 Rb8 14. g4 hxg4 15. h5 Rh8 16. f4 {1-0 (36) Kobalia,M (2651)-Mamedyarov,S (2753) Khanty-Mansiysk 2013}) 4... Nf6 {[%emt 0:04:30]} 5. Bc4 {[%emt 0:04:57]} Bg7 {[%emt 0:01:17]} 6. Ng5 {[%emt 0:05:27]} O-O {[%emt 0:17:26]} 7. h5 {[%emt 0:04:10]} Na5 $146 {[%emt 0:08:02]} ({Predecessor:} 7... d5 8. exd5 Na5 9. Be2 Nxd5 10. hxg6 hxg6 11. d3 Nf4 12. Bxf4 exf4 {0-1 (32) Copley,J-McMillan,N England 1994}) 8. hxg6 {[%emt 0:05:11]} Nxc4 {[%emt 0:05:42]} 9. gxf7+ {[%emt 0:00:09]} Rxf7 {[%emt 0:02:43]} 10. Nxf7 {[%emt 0:00:06]} Kxf7 {[%emt 0:00:05]} 11. d3 {[%emt 0:00:03]} Nb6 {[%emt 0:04:57]} 12. Bg5 {[%emt 0:00:25]} Kg8 {[%emt 0:08:45]} 13. f4 {[%emt 0:00:40]} exf4 {[%emt 0:05:55]} 14. Qd2 {[%emt 0:07:01]} d6 {[%emt 0:07:42]} (14... Qe8 $1 $11) 15. O-O-O {[%emt 0:02:24]} Qe8 {[%emt 0:03:02]} 16. Qxf4 {[%emt 0:02:09]} Qg6 {[%emt 0:01:43]} 17. Rdf1 {[%emt 0:00:29]} Ng4 $1 {[%emt 0:01:38]} 18. a4 {[%emt 0:11:12]} Be6 {[%emt 0:02:05]} 19. a5 {[%emt 0:02:31]} Nd7 {[%emt 0:01:39]} 20. Nd5 {[%emt 0:06:25]} Bxd5 {[%emt 0:02:53]} 21. exd5 {[%emt 0:02:08]} Nde5 {[%emt 0:03:49]} 22. Qd2 {[%emt 0:05:49]} Rf8 {[%emt 0:04:06]} 23. Rxf8+ {[%emt 0:00:41]} Bxf8 {[%emt 0:00:02]} 24. Kb1 {[%emt 0:01:02]} Qf5 {[%emt 0:01:04]} 25. Bd8 {[%emt 0:01:25]} Qd7 {[%emt 0:02:05]} 26. Bh4 {[%emt 0:01:21]} Bg7 {[%emt 0:00:56]} 27. Qb4 {[%emt 0:00:48]} b6 {[%emt 0:01:13]} 28. a6 {[%emt 0:00:39]} Ng6 {[%emt 0:01:12]} 29. Bg5 {[%emt 0:02:49]} Nf6 {[%emt 0:01:42]} 30. Qc4 {[%emt 0:02:20]} Ng4 {[%emt 0:02:32]} 31. Re1 {[%emt 0:01:07]} N4e5 {[%emt 0:00:18]} 32. Qe4 {[%emt 0:00:18]} c5 {[%emt 0:01:55]} 33. dxc6 $1 {[%emt 0:01:35]} Qxc6 {[%emt 0:00:24]} 34. Qxc6 {[%emt 0:00:37]} Nxc6 {[%emt 0:00:05] [#]} 35. Re8+ $1 {[%emt 0:00:05]} Kf7 $18 {[%emt 0:00:30] [#]} 36. Rc8 $1 {[%emt 0:00:37]} Nge5 {[%emt 0:01:43]} 37. c3 {[%emt 0:01:23]} Na5 {[%emt 0:01:02]} 38. b4 {[%emt 0:01:19]} Nac6 {[%emt 0:00:30]} 39. d4 {[%emt 0:00:24]} Kg6 {[%emt 0:00:12]} 40. dxe5 {[%emt 0:00:26]} 1-0

[Event "ARM-ch Club 2018"]
[Site "Yerevan"]
[Date "2018.06.09"]
[Round "2"]
[White "Khojayan, Vardan"]
[Black "Bakunts, Rafael"]
[Result "0-1"]
[ECO "D11"]
[WhiteElo "2253"]
[BlackElo "2395"]
[Annotator "NA"]
[PlyCount "88"]
[EventDate "2018.??.??"]
[EventCountry "ARM"]
[SourceTitle "playchess.com"]
[Source "ChessBase"]
[SourceQuality "1"]
[TimeControl "5400+30"]

1. d4 {[%emt 0:00:00]} d5 {[%emt 0:06:29]} 2. Nf3 {[%emt 0:00:09]} Nf6 {[%emt 0:00:25]} 3. c4 {[%emt 0:00:07]} c6 {[%emt 0:01:23]} 4. e3 {[%emt 0:00:19]} e6 {[%emt 0:00:20]} 5. Bd3 {[%emt 0:01:33]} dxc4 {[%emt 0:00:30]} 6. Bxc4 {[%emt 0:00:06]} Nbd7 {[%emt 0:00:07]} 7. O-O {[%emt 0:01:12]} Bd6 {[%emt 0:00:19]} 8. Re1 {[%emt 0:12:48]} O-O {[%emt 0:01:25]} 9. e4 {[%emt 0:13:17]} e5 {[%emt 0:00:24]} 10. Bg5 {[%emt 0:07:51]} Qe7 {[%emt 0:10:40]} 11. Nc3 {[%emt 0:08:41]} Re8 {[%emt 0:07:05]} 12. d5 {[%emt 0:07:30] D46: Semi-Slav: 5 e3 Nbd7 6 Bd3, Black avoids the Meran} h6 {[%emt 0:05:19]} 13. Bh4 {[%emt 0:01:57]} Nb6 {[%emt 0:02:52]} 14. Bb3 {[%emt 0:03:49]} Bg4 {[%emt 0:03:04]} (14... cxd5 15. exd5 Bf5 16. Nb5 Nbd7 17. Rc1 Nc5 18. Nfd4 Bg6 19. Bc2 e4 {1-0 (45) Schenk,A (2497)-Schwalfenberg,J (2335) Germany 2006}) 15. h3 {[%emt 0:07:41]} Bh5 $146 {[%emt 0:02:21]} ({Predecessor:} 15... Bd7 16. Rc1 Rac8 17. Qe2 Bb4 18. Red1 Bd6 19. Qd2 cxd5 20. Bxd5 {½-½ (31) Szabo,P (1990)-Misetane Burjan,A Hungary 2010}) 16. dxc6 {[%emt 0:03:02]} bxc6 {[%emt 0:01:00]} 17. g4 {[%emt 0:01:48]} Bg6 {[%emt 0:00:35]} 18. Bg3 {[%emt 0:01:00]} Nbd7 {[%emt 0:11:51]} 19. Nh4 {[%emt 0:02:35]} Bh7 {[%emt 0:02:20]} 20. Nf5 {[%emt 0:03:23]} Bxf5 {[%emt 0:00:15]} 21. exf5 {[%emt 0:00:21]} Nc5 {[%emt 0:02:27]} 22. h4 {[%emt 0:05:22]} Nxb3 {[%emt 0:05:24]} 23. axb3 {[%emt 0:00:22]} Nd5 {[%emt 0:00:07]} 24. Nxd5 {[%emt 0:01:41]} cxd5 {[%emt 0:00:16]} 25. Qxd5 {[%emt 0:00:19]} Rad8 {[%emt 0:00:17]} 26. Qe4 {[%emt 0:01:20]} Bb4 {[%emt 0:06:00]} 27. Red1 {[%emt 0:00:49]} a5 {[%emt 0:00:17]} 28. Rac1 {[%emt 0:00:40]} Bd2 {[%emt 0:03:02]} 29. Rc4 {[%emt 0:00:46]} Bf4 {[%emt 0:01:27]} 30. Rxd8 {[%emt 0:02:23]} Qxd8 {[%emt 0:00:13]} 31. Kg2 {[%emt 0:01:12]} Bxg3 {[%emt 0:00:29]} 32. Kxg3 {[%emt 0:00:12]} Qd1 {[%emt 0:01:05]} 33. Rc3 {[%emt 0:02:49]} Rd8 $11 {[%emt 0:04:52]} 34. Qf3 {[%emt 0:03:44]} Qg1+ {[%emt 0:01:35]} 35. Qg2 {[%emt 0:01:09]} Qb1 {[%emt 0:00:21]} 36. Qc6 {[%emt 0:01:40]} e4 {[%emt 0:03:11]} 37. Qb6 {[%emt 0:01:31]} Qg1+ {[%emt 0:02:56]} 38. Kf4 {[%emt 0:01:06]} Qh2+ {[%emt 0:00:32]} 39. Rg3 {[%emt 0:01:56]} Qxh4 {[%emt 0:00:26]} 40. Kxe4 {[%emt 0:01:11]} Re8+ {[%emt 0:02:37]} 41. Kf3 {[%emt 0:00:30]} Qh1+ {[%emt 0:00:38]} 42. Rg2 {[%emt 0:00:03]} h5 {[%emt 0:01:00]} 43. Qd4 {[%emt 0:00:58]} h4 {[%emt 0:02:36]} 44. Qd7 {[%emt 0:00:28]} Rf8 {[%emt 0:00:42]} 0-1